[Event "Championnat National du Sénégal"]
[Site "Arène National, Pikine, Senegal"]
[Date "2022.11.19"]
[Round "7.3"]
[White "Lesbros, Bernard"]
[Black "Diankha, Bara"]
[Result "1-0"]
[TimeControl "01.30 fb .30"]
[WhiteElo "1878"]
[BlackElo "1400"]

1. Nf3 {[%clk 01:28:40]} {[%emt 00:02:19]} c6 {[%clk 01:30:29]} {[%emt
00:00:32]} 2. c4 {[%clk 01:28:56]} {[%emt 00:00:14]} Nf6 {[%clk 01:30:08]}
{[%emt 00:00:51]} 3. d4 {[%clk 01:28:49]} {[%emt 00:00:37]} d5 {[%clk
01:29:33]} {[%emt 00:01:05]} 4. Qc2 {[%clk 01:29:12]} {[%emt 00:00:07]} Bg4
{[%clk 01:28:29]} {[%emt 00:01:34]} 5. Ne5 {[%clk 01:29:16]} {[%emt 00:00:26]}
e6 {[%clk 01:27:28]} {[%emt 00:01:30]} 6. Nxg4 {[%clk 01:24:15]} {[%emt
00:05:32]} Nxg4 {[%clk 01:27:36]} {[%emt 00:00:22]} 7. g3 {[%clk 01:23:42]}
{[%emt 00:01:02]} Qb6 {[%clk 01:26:21]} {[%emt 00:01:46]} 8. e3 {[%clk
01:12:58]} {[%emt 00:11:14]} Be7 {[%clk 01:25:44]} {[%emt 00:01:08]} 9. Bg2
{[%clk 01:12:07]} {[%emt 00:01:20]} Qb4+ {[%clk 01:25:45]} {[%emt 00:00:29]} 10.
Nd2 {[%clk 01:09:04]} {[%emt 00:03:32]} O-O {[%clk 01:24:40]} {[%emt 00:01:34]}
11. O-O {[%clk 01:08:16]} {[%emt 00:01:18]} Nd7 {[%clk 01:21:51]} {[%emt
00:03:22]} 12. h3 {[%clk 01:05:34]} {[%emt 00:03:12]} Nh6 {[%clk 01:21:38]}
{[%emt 00:00:43]} 13. a3 {[%clk 00:59:50]} {[%emt 00:06:13]} Qa5 {[%clk
01:21:21]} {[%emt 00:00:47]} 14. b4 {[%clk 00:59:01]} {[%emt 00:01:19]} Qd8
{[%clk 01:21:32]} {[%emt 00:00:20]} 15. Bb2 {[%clk 00:57:11]} {[%emt 00:02:19]}
Bd6 {[%clk 01:21:26]} {[%emt 00:00:37]} 16. e4 {[%clk 00:54:59]} {[%emt
00:02:43]} Bc7 {[%clk 01:17:39]} {[%emt 00:04:17]} 17. cxd5 {[%clk 00:51:19]}
{[%emt 00:04:10]} cxd5 {[%clk 01:14:56]} {[%emt 00:03:13]} 18. Rac1 {[%clk
00:48:10]} {[%emt 00:03:38]} Rc8 {[%clk 01:13:40]} {[%emt 00:02:25]} 19. exd5
{[%clk 00:43:59]} {[%emt 00:04:01]} exd5 {[%clk 01:13:20]} {[%emt 00:00:50]} 20.
Bxd5 {[%clk 00:41:33]} {[%emt 00:02:55]} b6 {[%clk 01:13:44]} {[%emt 00:00:08]}
21. Bb7 {[%clk 00:41:20]} {[%emt 00:00:43]} Bxg3 {[%clk 01:08:03]} {[%emt
00:06:11]} 22. Bxc8 {[%clk 00:39:00]} {[%emt 00:02:50]} Bf4 {[%clk 01:08:03]}
{[%emt 00:00:29]} 23. Bxd7 {[%clk 00:28:45]} {[%emt 00:10:45]} Qxd7 {[%clk
01:03:17]} {[%emt 00:05:16]} 24. Kg2 {[%clk 00:23:47]} {[%emt 00:05:28]} Qd5+
{[%clk 01:00:37]} {[%emt 00:03:12]} 25. Nf3 {[%clk 00:22:04]} {[%emt 00:02:12]}
Nf5 {[%clk 00:55:04]} {[%emt 00:16:16]} 26. Qc6 {[%clk 00:17:41]} Nh4+ {[%clk
00:53:47]} 27. Kh1 {[%clk 00:17:44]} Qh5 {[%clk 00:51:44]} 28. Nxh4 {[%clk
00:16:45]} {[%emt 00:00:55]} Qxh4 {[%clk 00:51:13]} {[%emt 00:01:01]} 29. Qg2
{[%clk 00:13:08]} {[%emt 00:04:07]} Bxc1 {[%clk 00:50:53]} {[%emt 00:00:49]} 30.
Rxc1 {[%clk 00:13:22]} {[%emt 00:00:17]} Qf4 {[%clk 00:48:50]} {[%emt
00:02:33]} 31. d5 {[%clk 00:11:58]} {[%emt 00:01:54]} f6 {[%clk 00:48:32]}
{[%emt 00:00:47]} 32. Re1 {[%clk 00:08:05]} {[%emt 00:04:22]} Qd2 {[%clk
00:47:54]} {[%emt 00:01:09]} 33. Rg1 {[%clk 00:07:15]} {[%emt 00:01:20]} g6
{[%clk 00:46:02]} {[%emt 00:02:22]} 34. f3 {[%clk 00:05:23]} {[%emt 00:02:23]}
Qxd5 {[%clk 00:45:59]} {[%emt 00:00:32]} 35. Qe2 {[%clk 00:04:41]} {[%emt
00:01:11]} Kg7 {[%clk 00:41:53]} {[%emt 00:04:37]} 36. Rd1 {[%clk 00:03:29]}
{[%emt 00:01:43]} Qf5 {[%clk 00:38:04]} {[%emt 00:04:20]} 37. Qg2 {[%clk
00:02:58]} {[%emt 00:01:52]} Rf7 {[%clk 00:37:26]} {[%emt 00:00:15]} 38. Kg1
{[%clk 00:02:18]} {[%emt 00:01:11]} b5 {[%clk 00:35:21]} {[%emt 00:02:33]} 39.
Rd2 {[%clk 00:02:33]} {[%emt 00:00:17]} Qf4 {[%clk 00:33:22]} {[%emt 00:02:28]}
40. Qf2 {[%clk 00:02:09]} {[%emt 00:00:54]} a6 {[%clk 00:32:29]} {[%emt
00:01:23]} 41. Rd4 {[%clk 00:02:07]} {[%emt 00:00:32]} Qf5 {[%clk 00:31:28]}
{[%emt 00:01:31]} 42. Bc1 {[%clk 00:00:46]} {[%emt 00:01:52]} Qxh3 {[%clk
00:29:25]} {[%emt 00:02:33]} 43. Qh2 {[%clk 00:23:33]} {[%emt 00:07:43]} Qc8
{[%clk 00:55:24]} {[%emt 00:04:31]} 44. Bh6+ {[%clk 00:21:41]} {[%emt
00:02:22]} Kg8 {[%clk 00:52:56]} {[%emt 00:03:00]} 45. Qd2 {[%clk 00:21:00]}
{[%emt 00:01:10]} Qh3 {[%clk 00:42:06]} {[%emt 00:11:20]} 46. Rd8+ {[%clk
00:21:13]} {[%emt 00:00:17]} Rf8 {[%clk 00:42:34]} {[%emt 00:00:02]} 47. Rxf8#
{[%clk 00:21:34]} {[%emt 00:00:08]} 1-0

[ePGN "0.1;DGT LiveChess/2.2"]

[Event "Championnat National du Sénégal"]
[Site "Arène National, Pikine, Senegal"]
[Date "2022.11.20"]
[Round "8.4"]
[White "Ly, Abdoulaye Aziz"]
[Black "Lesbros, Bernard"]
[Result "0-1"]
[TimeControl "01.30 fb .30"]
[WhiteElo "1400"]
[BlackElo "1878"]

1. e4 {[%clk 01:25:41]} {[%emt 00:05:17]} c5 {[%clk 01:30:44]} {[%emt
00:00:17]} 2. Nf3 {[%clk 01:26:04]} {[%emt 00:00:06]} Nc6 {[%clk 01:31:07]}
{[%emt 00:00:08]} 3. d4 {[%clk 01:26:30]} {[%emt 00:00:05]} cxd4 {[%clk
01:31:24]} {[%emt 00:00:13]} 4. Nxd4 {[%clk 01:26:54]} {[%emt 00:00:06]} g6
{[%clk 01:31:08]} {[%emt 00:00:45]} 5. c4 {[%clk 01:27:09]} {[%emt 00:00:15]}
Bg7 {[%clk 01:31:30]} {[%emt 00:00:08]} 6. Be3 {[%clk 01:27:24]} {[%emt
00:00:14]} Nf6 {[%clk 01:30:57]} {[%emt 00:01:03]} 7. Nc3 {[%clk 01:27:42]}
{[%emt 00:00:13]} d6 {[%clk 01:27:23]} {[%emt 00:04:05]} 8. h3 {[%clk
01:22:29]} {[%emt 00:05:42]} Bd7 {[%clk 01:26:57]} {[%emt 00:00:56]} 9. Nc2
{[%clk 01:13:19]} {[%emt 00:09:40]} O-O {[%clk 01:21:15]} {[%emt 00:06:11]} 10.
Be2 {[%clk 01:10:58]} {[%emt 00:02:52]} Be6 {[%clk 01:19:46]} {[%emt 00:01:58]}
11. Na3 {[%clk 01:08:31]} {[%emt 00:02:56]} Qa5 {[%clk 01:13:19]} {[%emt
00:06:59]} 12. O-O {[%clk 01:06:58]} {[%emt 00:02:03]} Nd7 {[%clk 01:10:43]}
{[%emt 00:03:07]} 13. Bd2 {[%clk 01:02:37]} {[%emt 00:04:50]} Qb6 {[%clk
01:05:52]} {[%emt 00:05:22]} 14. Rb1 {[%clk 00:59:51]} {[%emt 00:03:13]} f5
{[%clk 01:00:12]} {[%emt 00:06:11]} 15. Be3 {[%clk 00:56:49]} {[%emt 00:03:31]}
Qa5 {[%clk 00:56:05]} {[%emt 00:04:38]} 16. Rc1 {[%clk 00:55:30]} {[%emt
00:01:49]} f4 {[%clk 00:52:53]} {[%emt 00:03:42]} 17. Bd2 {[%clk 00:55:28]}
{[%emt 00:00:32]} Qg5 {[%clk 00:51:24]} {[%emt 00:02:00]} 18. Bg4 {[%clk
00:53:54]} {[%emt 00:02:04]} Bxg4 {[%clk 00:49:01]} {[%emt 00:02:52]} 19. Qxg4
{[%clk 00:54:23]} {[%emt 00:00:03]} Qxg4 {[%clk 00:48:43]} {[%emt 00:00:48]} 20.
hxg4 {[%clk 00:54:51]} Nc5 {[%clk 00:43:17]} {[%emt 00:05:55]} 21. Nab1 {[%clk
00:52:41]} {[%emt 00:02:41]} Nd3 {[%clk 00:41:07]} {[%emt 00:02:40]} 22. b3
{[%clk 00:51:23]} {[%emt 00:01:47]} Nxc1 {[%clk 00:41:15]} {[%emt 00:00:22]} 23.
Bxc1 {[%clk 00:51:01]} {[%emt 00:00:52]} Nb4 {[%clk 00:40:22]} {[%emt
00:01:23]} 24. Rd1 {[%clk 00:50:30]} {[%emt 00:01:01]} g5 {[%clk 00:34:31]}
{[%emt 00:06:21]} 25. Nd5 {[%clk 00:50:05]} {[%emt 00:00:54]} Nxd5 {[%clk
00:33:56]} {[%emt 00:01:06]} 26. Rxd5 {[%clk 00:49:44]} {[%emt 00:00:51]} Be5
{[%clk 00:32:09]} {[%emt 00:02:17]} 27. f3 {[%clk 00:48:48]} {[%emt 00:01:27]}
Rfc8 {[%clk 00:29:56]} {[%emt 00:02:42]} 28. Bd2 {[%clk 00:46:29]} {[%emt
00:02:48]} Kf7 {[%clk 00:27:13]} {[%emt 00:03:14]} 29. Bc3 {[%clk 00:45:05]}
{[%emt 00:01:54]} Bxc3 {[%clk 00:22:04]} {[%emt 00:05:39]} 30. Nxc3 {[%clk
00:45:34]} {[%emt 00:00:01]} Rc5 {[%clk 00:20:45]} {[%emt 00:01:48]} 31. Rd2
{[%clk 00:44:10]} {[%emt 00:01:54]} a6 {[%clk 00:18:57]} {[%emt 00:02:18]} 32.
Na4 {[%clk 00:43:08]} {[%emt 00:01:33]} Rc6 {[%clk 00:19:01]} {[%emt 00:00:25]}
33. Rd5 {[%clk 00:41:33]} {[%emt 00:02:05]} b5 {[%clk 00:16:27]} {[%emt
00:03:04]} 34. cxb5 {[%clk 00:41:15]} {[%emt 00:00:48]} axb5 {[%clk 00:16:47]}
{[%emt 00:00:09]} 35. Rxb5 {[%clk 00:41:43]} {[%emt 00:00:02]} Rc1+ {[%clk
00:16:49]} {[%emt 00:00:27]} 36. Kh2 {[%clk 00:41:28]} {[%emt 00:00:46]} h6
{[%clk 00:14:30]} {[%emt 00:06:18]} 0-1

[Event "Championnat National du Sénégal"]
[Site "Arène National, Pikine, Senegal"]
[Date "2022.11.20"]
[Round "8.2"]
[White "Bodin-Hulin, Thomas"]
[Black "CM Wane, Al Hassane"]
[Result "1/2-1/2"]
[TimeControl "01.30 fb .30"]
[WhiteElo "1838"]
[BlackElo "1789"]

1. e4 {[%clk 01:20:14]} {[%emt 00:10:45]} c5 {[%clk 01:30:57]} {[%emt
00:00:04]} 2. Nf3 {[%clk 01:20:41]} {[%emt 00:00:03]} Nc6 {[%clk 01:31:16]}
{[%emt 00:00:11]} 3. d4 {[%clk 01:21:05]} {[%emt 00:00:06]} cxd4 {[%clk
01:31:40]} {[%emt 00:00:06]} 4. Nxd4 {[%clk 01:21:32]} {[%emt 00:00:03]} Nf6
{[%clk 01:31:49]} {[%emt 00:00:21]} 5. Nc3 {[%clk 01:21:43]} {[%emt 00:00:19]}
e6 {[%clk 01:32:04]} {[%emt 00:00:15]} 6. Be3 {[%clk 01:19:02]} {[%emt
00:03:11]} Bb4 {[%clk 01:32:18]} {[%emt 00:00:15]} 7. f3 {[%clk 01:16:56]}
{[%emt 00:02:36]} d5 {[%clk 01:32:16]} {[%emt 00:00:32]} 8. Nxc6 {[%clk
01:11:42]} {[%emt 00:05:45]} bxc6 {[%clk 01:32:28]} {[%emt 00:00:18]} 9. e5
{[%clk 01:12:08]} {[%emt 00:00:04]} Nd7 {[%clk 01:32:41]} {[%emt 00:00:16]} 10.
f4 {[%clk 01:11:38]} {[%emt 00:01:00]} c5 {[%clk 01:32:25]} {[%emt 00:00:46]}
11. a3 {[%clk 01:05:42]} {[%emt 00:06:26]} Ba5 {[%clk 01:32:16]} {[%emt
00:00:39]} 12. Bd2 {[%clk 01:03:28]} {[%emt 00:02:44]} O-O {[%clk 01:28:48]}
{[%emt 00:03:58]} 13. Be2 {[%clk 00:55:26]} {[%emt 00:08:32]} Qh4+ {[%clk
01:27:12]} {[%emt 00:02:06]} 14. g3 {[%clk 00:55:24]} {[%emt 00:00:32]} Qh3
{[%clk 01:27:18]} {[%emt 00:00:24]} 15. Bf1 {[%clk 00:54:04]} {[%emt 00:01:50]}
Qf5 {[%clk 01:23:42]} {[%emt 00:04:06]} 16. g4 {[%clk 00:37:38]} {[%emt
00:16:56]} Qg6 {[%clk 01:23:40]} {[%emt 00:00:32]} 17. Bd3 {[%clk 00:37:52]}
{[%emt 00:00:16]} Qh6 {[%clk 01:23:49]} {[%emt 00:00:20]} 18. h4 {[%clk
00:37:26]} {[%emt 00:00:56]} g6 {[%clk 01:22:56]} {[%emt 00:01:22]} 19. g5
{[%clk 00:24:53]} {[%emt 00:13:04]} Qg7 {[%clk 01:23:08]} {[%emt 00:00:18]} 20.
Qg4 {[%clk 00:16:01]} {[%emt 00:09:21]} c4 {[%clk 01:22:19]} {[%emt 00:01:19]}
21. Be2 {[%clk 00:15:28]} {[%emt 00:01:03]} d4 {[%clk 01:22:10]} {[%emt
00:00:39]} 22. Ne4 {[%clk 00:13:59]} {[%emt 00:01:59]} Bxd2+ {[%clk 01:20:10]}
{[%emt 00:02:30]} 23. Kxd2 {[%clk 00:11:36]} {[%emt 00:02:52]} c3+ {[%clk
01:17:49]} {[%emt 00:02:51]} 24. bxc3 {[%clk 00:11:05]} {[%emt 00:01:01]} dxc3+
{[%clk 01:18:17]} {[%emt 00:00:02]} 25. Ke1 {[%clk 00:11:03]} {[%emt 00:00:33]}
Bb7 {[%clk 01:17:49]} {[%emt 00:00:59]} 26. Nf6+ {[%clk 00:11:10]} {[%emt
00:00:23]} Nxf6 {[%clk 01:17:50]} {[%emt 00:00:29]} 27. gxf6 {[%clk 00:09:24]}
{[%emt 00:02:16]} Qh6 {[%clk 01:17:24]} {[%emt 00:00:56]} 28. Rg1 {[%clk
00:07:56]} {[%emt 00:01:58]} Kh8 {[%clk 01:17:24]} {[%emt 00:00:30]} 29. Rg3
{[%clk 00:07:26]} {[%emt 00:01:01]} Rac8 {[%clk 01:14:09]} {[%emt 00:03:45]} 30.
Bd3 {[%clk 00:04:55]} {[%emt 00:03:00]} Rfd8 {[%clk 01:13:46]} {[%emt
00:00:52]} 31. Ke2 {[%clk 00:03:37]} {[%emt 00:01:49]} Rd4 {[%clk 01:13:37]}
{[%emt 00:00:39]} 32. Rf1 {[%clk 00:03:56]} {[%emt 00:00:11]} Be4 {[%clk
01:13:42]} {[%emt 00:00:25]} 33. h5 {[%clk 00:01:43]} {[%emt 00:02:42]} Bxd3+
{[%clk 01:11:57]} {[%emt 00:02:15]} 34. Rxd3 {[%clk 00:01:43]} {[%emt
00:00:31]} Rxd3 {[%clk 01:12:01]} {[%emt 00:00:25]} 35. Kxd3 {[%clk 00:01:28]}
{[%emt 00:00:45]} gxh5 {[%clk 01:11:33]} {[%emt 00:00:58]} 36. Qf3 {[%clk
00:00:51]} {[%emt 00:01:07]} Qg6+ {[%clk 01:11:52]} {[%emt 00:00:11]} 37. Qe4
{[%clk 00:01:09]} {[%emt 00:00:12]} Rd8+ {[%clk 01:11:33]} {[%emt 00:00:49]} 38.
Ke3 {[%clk 00:01:20]} {[%emt 00:00:19]} Qg3+ {[%clk 01:05:33]} {[%emt
00:06:29]} 39. Qf3 {[%clk 00:01:46]} {[%emt 00:00:05]} Qh2 {[%clk 01:05:03]}
{[%emt 00:00:59]} 40. Rd1 {[%clk 00:01:31]} {[%emt 00:00:46]} Rg8 {[%clk
01:02:32]} {[%emt 00:03:02]} 41. Ke4 {[%clk 00:00:32]} {[%emt 00:01:29]} Qxc2+
{[%clk 01:02:45]} {[%emt 00:00:16]} 42. Qd3 {[%clk 00:29:00]} {[%emt 00:02:02]}
Qg2+ {[%clk 01:32:00]} {[%emt 00:01:15]} 43. Qf3 {[%clk 00:29:00]} {[%emt
00:00:30]} Qg6+ {[%clk 01:31:26]} {[%emt 00:01:05]} 44. Kd4 {[%clk 00:23:41]}
{[%emt 00:05:49]} c2 {[%clk 01:31:40]} {[%emt 00:00:16]} 45. Rc1 {[%clk
00:23:24]} {[%emt 00:00:48]} Rd8+ {[%clk 01:29:35]} {[%emt 00:02:35]} 46. Kc3
{[%clk 00:22:49]} {[%emt 00:01:05]} Rc8+ {[%clk 01:29:36]} {[%emt 00:00:29]} 47.
Kb2 {[%emt 00:00:47]} h6 {[%clk 01:29:41]} {[%emt 00:00:24]} 48. Qb7 {[%clk
00:21:20]} {[%emt 00:01:44]} Rc5 {[%clk 01:28:01]} {[%emt 00:02:09]} 49. Qxa7
{[%clk 00:13:06]} {[%emt 00:08:44]} Rc4 {[%clk 01:23:53]} {[%emt 00:04:37]} 50.
f5 {[%clk 00:09:16]} {[%emt 00:04:21]} exf5 {[%clk 01:23:12]} {[%emt 00:01:11]}
51. Qe7 {[%clk 00:07:07]} {[%emt 00:02:40]} f4 {[%clk 01:18:37]} {[%emt
00:05:04]} 52. e6 {[%clk 00:06:36]} {[%emt 00:01:01]} fxe6 {[%clk 01:15:29]}
{[%emt 00:03:38]} 53. f7 {[%clk 00:02:30]} {[%emt 00:04:36]} Qg7+ {[%clk
01:12:27]} {[%emt 00:03:31]} 54. Ka2 {[%clk 00:02:29]} {[%emt 00:00:32]} Rc8
{[%clk 01:09:20]} {[%emt 00:03:38]} 55. Qe8+ {[%clk 00:00:51]} {[%emt
00:02:07]} Qf8 {[%clk 01:09:06]} {[%emt 00:00:43]} 56. Qxe6 {[%clk 00:01:17]}
{[%emt 00:00:06]} Ra8 {[%clk 00:58:25]} {[%emt 00:11:11]} 57. Qb3 {[%clk
00:01:07]} {[%emt 00:00:40]} Rb8 {[%clk 00:58:24]} {[%emt 00:00:31]} 58. Qe6
{[%clk 00:01:02]} {[%emt 00:00:37]} Ra8 {[%clk 00:55:00]} {[%emt 00:03:53]} 59.
Qb3 {[%clk 00:01:27]} {[%emt 00:00:05]} Rb8 {[%clk 00:52:18]} {[%emt 00:03:12]}
60. Qe6 {[%clk 00:01:49]} {[%emt 00:00:09]} Ra8 {[%clk 00:52:42]} {[%emt
00:00:07]} 61. Qb3 {[%clk 00:01:47]} {[%emt 00:00:32]} 1/2-1/2

[Event "Championnat National du Sénégal"]
[Site "Arène National, Pikine, Senegal"]
[Date "2022.11.20"]
[Round "8.3"]
[White "Diankha, Bara"]
[Black "Ba, El Hadji Seydou Nourou"]
[Result "0-1"]
[TimeControl "01.30 fb .30"]
[WhiteElo "1400"]
[BlackElo "1644"]

1. c3 {[%clk 01:27:08]} {[%emt 00:03:49]} Nf6 {[%clk 01:30:54]} {[%emt
00:00:09]} 2. Nf3 {[%clk 01:27:01]} {[%emt 00:00:36]} d5 {[%clk 01:31:14]}
{[%emt 00:00:10]} 3. d4 {[%clk 01:27:00]} {[%emt 00:00:29]} c5 {[%clk
01:31:36]} {[%emt 00:00:10]} 4. dxc5 {[%clk 01:25:22]} {[%emt 00:02:08]} a5
{[%clk 01:31:29]} {[%emt 00:00:37]} 5. e3 {[%clk 01:24:18]} {[%emt 00:01:33]}
e6 {[%clk 01:30:52]} {[%emt 00:01:08]} 6. Bb5+ {[%clk 01:23:20]} {[%emt
00:01:28]} Bd7 {[%clk 01:31:15]} {[%emt 00:00:07]} 7. Bxd7+ {[%clk 01:22:32]}
{[%emt 00:01:17]} Nbxd7 {[%clk 01:29:50]} {[%emt 00:01:56]} 8. b4 {[%clk
01:21:39]} {[%emt 00:01:22]} axb4 {[%clk 01:29:43]} {[%emt 00:00:38]} 9. cxb4
{[%clk 01:21:51]} {[%emt 00:00:18]} b6 {[%clk 01:29:59]} {[%emt 00:00:14]} 10.
O-O {[%clk 01:21:08]} {[%emt 00:01:13]} bxc5 {[%clk 01:30:15]} {[%emt
00:00:15]} 11. Bd2 {[%clk 01:20:37]} {[%emt 00:01:00]} cxb4 {[%clk 01:30:17]}
{[%emt 00:00:29]} 12. Nd4 {[%clk 01:20:35]} {[%emt 00:00:32]} Qb6 {[%clk
01:29:54]} {[%emt 00:00:53]} 13. Qc2 {[%clk 01:19:49]} {[%emt 00:01:17]} Bc5
{[%clk 01:26:56]} {[%emt 00:03:28]} 14. Nb3 {[%clk 01:18:45]} {[%emt 00:01:34]}
Bd6 {[%emt 00:03:26]} 15. f4 {[%emt 00:00:36]} O-O {[%clk 01:21:48]} {[%emt
00:01:35]} 16. Rf3 {[%clk 01:18:54]} {[%emt 00:00:21]} Ne4 {[%clk 01:20:38]}
{[%emt 00:01:40]} 17. Be1 {[%clk 01:16:03]} {[%emt 00:03:21]} Rfc8 {[%clk
01:13:56]} {[%emt 00:07:12]} 18. Qe2 {[%clk 01:15:34]} {[%emt 00:00:59]} Ndc5
{[%clk 01:11:41]} {[%emt 00:02:44]} 19. N1d2 {[%clk 01:13:31]} {[%emt
00:02:34]} Nxd2 {[%clk 01:10:51]} {[%emt 00:01:20]} 20. Nxd2 {[%clk 01:12:39]}
{[%emt 00:01:21]} b3 {[%clk 01:11:02]} {[%emt 00:00:19]} 21. Nxb3 {[%clk
01:03:22]} {[%emt 00:09:47]} Nxb3 {[%clk 01:11:26]} {[%emt 00:00:06]} 22. Rb1
{[%clk 01:03:49]} {[%emt 00:00:03]} Nd4 {[%clk 01:11:22]} {[%emt 00:00:35]} 23.
Rxb6 {[%clk 00:58:53]} {[%emt 00:05:26]} Nxe2+ {[%clk 01:11:37]} {[%emt
00:00:15]} 24. Kf1 {[%clk 00:59:10]} {[%emt 00:00:13]} Bc5 {[%clk 01:11:26]}
{[%emt 00:00:41]} 25. f5 {[%clk 00:54:30]} {[%emt 00:05:11]} Bxb6 {[%clk
01:11:31]} {[%emt 00:00:24]} 26. Kxe2 {[%emt 00:00:10]} Rxa2+ {[%emt 00:00:10]}
27. Kd3 {[%clk 00:54:34]} {[%emt 00:00:05]} e5 {[%clk 01:11:29]} {[%emt
00:00:31]} 28. Bd2 {[%clk 00:54:09]} {[%emt 00:00:57]} e4+ {[%clk 01:11:46]}
{[%emt 00:00:13]} 29. Kd4 {[%clk 00:54:25]} {[%emt 00:01:30]} 0-1